{"text_format":"3","workbook":"xlsx","n_sheets":2,"sheets":["Pulmaeelarve","Eelarve üksikasjad"],"not_rendered":{"charts":1,"images":1,"defined_names":2},"read":"whole","date_system":"1900"}

{"sheet":"Pulmaeelarve","index":0,"n_rows":16,"n_cols":16,"rows_kept":16,"merged":[[1,1,1,5]]}
[{"$nulls":6}," "]
[null,"LIISA + ERGO\nABIELU"]
[{"$nulls":7}," "]
[]
[null,"KATEGOORIA","PROGNOOSITUD KULU","TEGELIK KULU","ERINEVUS","PROTSENT EELARVEST",{"$nulls":3},"Sortimata","Eeldatavad kulud","Tegelikud kulud","Hinnanguline kulu – olulisuse järjestus","Järjestus","Nr","Sorditud"]
[null,{"$f":"P6","v":"Vastuvõtt"},{"$f":"VLOOKUP(TBL_Kokkuvõte[[#This Row],[KATEGOORIA]],TBL_RankingData,2,FALSE)","v":{"v":14500,"d":"14,500 €"}},{"$f":"IF(VLOOKUP(TBL_Kokkuvõte[[#This Row],[KATEGOORIA]],TBL_RankingData,3,FALSE)=0,\"\",VLOOKUP(TBL_Kokkuvõte[[#This Row],[KATEGOORIA]],TBL_RankingData,3,FALSE))","v":{"v":12800,"d":"12,800 €"}},{"$f":"IF(OR(TBL_Kokkuvõte[[#This Row],[PROGNOOSITUD KULU]]=\"\",TBL_Kokkuvõte[[#This Row],[TEGELIK KULU]]=\"\"),\"\",TBL_Kokkuvõte[[#This Row],[PROGNOOSITUD KULU]]-TBL_Kokkuvõte[[#This Row],[TEGELIK KULU]])","v":{"v":1700,"d":"1,700 €"}},{"$f":"TBL_Kokkuvõte[[#This Row],[PROGNOOSITUD KULU]]/SUM(TBL_Kokkuvõte[PROGNOOSITUD KULU])","v":{"v":0.48739495798319327,"d":"48.7%"}},{"$nulls":3},"Vastuvõtt",{"$f":"TBL_Vastuvõtt[[#Totals],[EELDATAV]]","v":14500},{"$f":"TBL_Vastuvõtt[[#Totals],[TEGELIK]]","v":12800},{"$f":"K6-O6/100","v":14499.99},{"$f":"_xlfn.RANK.AVG(M6,$M$6:$M$15)","v":1},1,{"$f":"INDEX(TBL_RankingData,MATCH(O6,$N$6:$N$15,0),1)","v":"Vastuvõtt"}]
[null,{"$f":"P7","v":"Riietus"},{"$f":"VLOOKUP(TBL_Kokkuvõte[[#This Row],[KATEGOORIA]],TBL_RankingData,2,FALSE)","v":{"v":4000,"d":"4,000 €"}},{"$f":"IF(VLOOKUP(TBL_Kokkuvõte[[#This Row],[KATEGOORIA]],TBL_RankingData,3,FALSE)=0,\"\",VLOOKUP(TBL_Kokkuvõte[[#This Row],[KATEGOORIA]],TBL_RankingData,3,FALSE))","v":{"v":2900,"d":"2,900 €"}},{"$f":"IF(OR(TBL_Kokkuvõte[[#This Row],[PROGNOOSITUD KULU]]=\"\",TBL_Kokkuvõte[[#This Row],[TEGELIK KULU]]=\"\"),\"\",TBL_Kokkuvõte[[#This Row],[PROGNOOSITUD KULU]]-TBL_Kokkuvõte[[#This Row],[TEGELIK KULU]])","v":{"v":1100,"d":"1,100 €"}},{"$f":"TBL_Kokkuvõte[[#This Row],[PROGNOOSITUD KULU]]/SUM(TBL_Kokkuvõte[PROGNOOSITUD KULU])","v":{"v":0.13445378151260504,"d":"13.4%"}},{"$nulls":3},"Riietus",{"$f":"TBL_Riietus[[#Totals],[EELDATAV]]","v":4000},{"$f":"TBL_Riietus[[#Totals],[TEGELIK]]","v":2900},{"$f":"K7-O7/100","v":3999.98},2,2,"Riietus"]
[null,"Lilled ja dekoratsioonid",{"$f":"VLOOKUP(TBL_Kokkuvõte[[#This Row],[KATEGOORIA]],TBL_RankingData,2,FALSE)","v":{"v":3000,"d":"3,000 €"}},{"$f":"IF(VLOOKUP(TBL_Kokkuvõte[[#This Row],[KATEGOORIA]],TBL_RankingData,3,FALSE)=0,\"\",VLOOKUP(TBL_Kokkuvõte[[#This Row],[KATEGOORIA]],TBL_RankingData,3,FALSE))","v":""},{"$f":"IF(OR(TBL_Kokkuvõte[[#This Row],[PROGNOOSITUD KULU]]=\"\",TBL_Kokkuvõte[[#This Row],[TEGELIK KULU]]=\"\"),\"\",TBL_Kokkuvõte[[#This Row],[PROGNOOSITUD KULU]]-TBL_Kokkuvõte[[#This Row],[TEGELIK KULU]])","v":""},{"$f":"TBL_Kokkuvõte[[#This Row],[PROGNOOSITUD KULU]]/SUM(TBL_Kokkuvõte[PROGNOOSITUD KULU])","v":{"v":0.10084033613445378,"d":"10.1%"}},{"$nulls":3},"Lilled ja dekoratsioonid",{"$f":"TBL_Lilledjadekoratsioonid[[#Totals],[EELDATAV]]","v":3000},{"$f":"TBL_Lilledjadekoratsioonid[[#Totals],[TEGELIK]]","v":0},2999.97,3,3,"Lilled ja dekoratsioonid"]
[null,"Fotod ja videod",{"$f":"VLOOKUP(TBL_Kokkuvõte[[#This Row],[KATEGOORIA]],TBL_RankingData,2,FALSE)","v":{"v":2500,"d":"2,500 €"}},{"$f":"IF(VLOOKUP(TBL_Kokkuvõte[[#This Row],[KATEGOORIA]],TBL_RankingData,3,FALSE)=0,\"\",VLOOKUP(TBL_Kokkuvõte[[#This Row],[KATEGOORIA]],TBL_RankingData,3,FALSE))","v":""},{"$f":"IF(OR(TBL_Kokkuvõte[[#This Row],[PROGNOOSITUD KULU]]=\"\",TBL_Kokkuvõte[[#This Row],[TEGELIK KULU]]=\"\"),\"\",TBL_Kokkuvõte[[#This Row],[PROGNOOSITUD KULU]]-TBL_Kokkuvõte[[#This Row],[TEGELIK KULU]])","v":""},{"$f":"TBL_Kokkuvõte[[#This Row],[PROGNOOSITUD KULU]]/SUM(TBL_Kokkuvõte[PROGNOOSITUD KULU])","v":{"v":0.08403361344537816,"d":"8.4%"}},{"$nulls":3},"Muusika",{"$f":"TBL_Muusika[[#Totals],[EELDATAV]]","v":1800},{"$f":"TBL_Muusika[[#Totals],[TEGELIK]]","v":0},1799.96,5,4,"Fotod ja videod"]
[null,"Muusika",{"$f":"VLOOKUP(TBL_Kokkuvõte[[#This Row],[KATEGOORIA]],TBL_RankingData,2,FALSE)","v":{"v":1800,"d":"1,800 €"}},{"$f":"IF(VLOOKUP(TBL_Kokkuvõte[[#This Row],[KATEGOORIA]],TBL_RankingData,3,FALSE)=0,\"\",VLOOKUP(TBL_Kokkuvõte[[#This Row],[KATEGOORIA]],TBL_RankingData,3,FALSE))","v":""},{"$f":"IF(OR(TBL_Kokkuvõte[[#This Row],[PROGNOOSITUD KULU]]=\"\",TBL_Kokkuvõte[[#This Row],[TEGELIK KULU]]=\"\"),\"\",TBL_Kokkuvõte[[#This Row],[PROGNOOSITUD KULU]]-TBL_Kokkuvõte[[#This Row],[TEGELIK KULU]])","v":""},{"$f":"TBL_Kokkuvõte[[#This Row],[PROGNOOSITUD KULU]]/SUM(TBL_Kokkuvõte[PROGNOOSITUD KULU])","v":{"v":0.06050420168067227,"d":"6.1%"}},{"$nulls":3},"Fotod ja videod",{"$f":"TBL_Fotodjavideo[[#Totals],[EELDATAV]]","v":2500},{"$f":"TBL_Fotodjavideo[[#Totals],[TEGELIK]]","v":0},2499.95,4,5,"Muusika"]
[null,"Meened ja kingitused",{"$f":"VLOOKUP(TBL_Kokkuvõte[[#This Row],[KATEGOORIA]],TBL_RankingData,2,FALSE)","v":{"v":1100,"d":"1,100 €"}},{"$f":"IF(VLOOKUP(TBL_Kokkuvõte[[#This Row],[KATEGOORIA]],TBL_RankingData,3,FALSE)=0,\"\",VLOOKUP(TBL_Kokkuvõte[[#This Row],[KATEGOORIA]],TBL_RankingData,3,FALSE))","v":""},{"$f":"IF(OR(TBL_Kokkuvõte[[#This Row],[PROGNOOSITUD KULU]]=\"\",TBL_Kokkuvõte[[#This Row],[TEGELIK KULU]]=\"\"),\"\",TBL_Kokkuvõte[[#This Row],[PROGNOOSITUD KULU]]-TBL_Kokkuvõte[[#This Row],[TEGELIK KULU]])","v":""},{"$f":"TBL_Kokkuvõte[[#This Row],[PROGNOOSITUD KULU]]/SUM(TBL_Kokkuvõte[PROGNOOSITUD KULU])","v":{"v":0.03697478991596639,"d":"3.7%"}},{"$nulls":3},"Meened ja kingitused",{"$f":"TBL_Meenedjakingitused[[#Totals],[EELDATAV]]","v":1100},{"$f":"TBL_Meenedjakingitused[[#Totals],[TEGELIK]]","v":0},1099.94,6,6,"Meened ja kingitused"]
[null,{"$f":"P12","v":"Abielusõrmused"},{"$f":"VLOOKUP(TBL_Kokkuvõte[[#This Row],[KATEGOORIA]],TBL_RankingData,2,FALSE)","v":{"v":1100,"d":"1,100 €"}},{"$f":"IF(VLOOKUP(TBL_Kokkuvõte[[#This Row],[KATEGOORIA]],TBL_RankingData,3,FALSE)=0,\"\",VLOOKUP(TBL_Kokkuvõte[[#This Row],[KATEGOORIA]],TBL_RankingData,3,FALSE))","v":""},{"$f":"IF(OR(TBL_Kokkuvõte[[#This Row],[PROGNOOSITUD KULU]]=\"\",TBL_Kokkuvõte[[#This Row],[TEGELIK KULU]]=\"\"),\"\",TBL_Kokkuvõte[[#This Row],[PROGNOOSITUD KULU]]-TBL_Kokkuvõte[[#This Row],[TEGELIK KULU]])","v":""},{"$f":"TBL_Kokkuvõte[[#This Row],[PROGNOOSITUD KULU]]/SUM(TBL_Kokkuvõte[PROGNOOSITUD KULU])","v":{"v":0.03697478991596639,"d":"3.7%"}},{"$nulls":3},"Tseremoonia",{"$f":"TBL_Tseremoonia[[#Totals],[EELDATAV]]","v":800},{"$f":"TBL_Tseremoonia[[#Totals],[TEGELIK]]","v":0},799.93,8,7,"Abielusõrmused"]
[null,"Tseremoonia",{"$f":"VLOOKUP(TBL_Kokkuvõte[[#This Row],[KATEGOORIA]],TBL_RankingData,2,FALSE)","v":{"v":800,"d":"800 €"}},{"$f":"IF(VLOOKUP(TBL_Kokkuvõte[[#This Row],[KATEGOORIA]],TBL_RankingData,3,FALSE)=0,\"\",VLOOKUP(TBL_Kokkuvõte[[#This Row],[KATEGOORIA]],TBL_RankingData,3,FALSE))","v":""},{"$f":"IF(OR(TBL_Kokkuvõte[[#This Row],[PROGNOOSITUD KULU]]=\"\",TBL_Kokkuvõte[[#This Row],[TEGELIK KULU]]=\"\"),\"\",TBL_Kokkuvõte[[#This Row],[PROGNOOSITUD KULU]]-TBL_Kokkuvõte[[#This Row],[TEGELIK KULU]])","v":""},{"$f":"TBL_Kokkuvõte[[#This Row],[PROGNOOSITUD KULU]]/SUM(TBL_Kokkuvõte[PROGNOOSITUD KULU])","v":{"v":0.02689075630252101,"d":"2.7%"}},{"$nulls":3},"Kirjatarbed",{"$f":"TBL_Kirjatarbed[[#Totals],[EELDATAV]]","v":500},{"$f":"TBL_Kirjatarbed[[#Totals],[TEGELIK]]","v":0},499.92,9,8,"Tseremoonia"]
[null,"Kirjatarbed",{"$f":"VLOOKUP(TBL_Kokkuvõte[[#This Row],[KATEGOORIA]],TBL_RankingData,2,FALSE)","v":{"v":500,"d":"500 €"}},{"$f":"IF(VLOOKUP(TBL_Kokkuvõte[[#This Row],[KATEGOORIA]],TBL_RankingData,3,FALSE)=0,\"\",VLOOKUP(TBL_Kokkuvõte[[#This Row],[KATEGOORIA]],TBL_RankingData,3,FALSE))","v":""},{"$f":"IF(OR(TBL_Kokkuvõte[[#This Row],[PROGNOOSITUD KULU]]=\"\",TBL_Kokkuvõte[[#This Row],[TEGELIK KULU]]=\"\"),\"\",TBL_Kokkuvõte[[#This Row],[PROGNOOSITUD KULU]]-TBL_Kokkuvõte[[#This Row],[TEGELIK KULU]])","v":""},{"$f":"TBL_Kokkuvõte[[#This Row],[PROGNOOSITUD KULU]]/SUM(TBL_Kokkuvõte[PROGNOOSITUD KULU])","v":{"v":0.01680672268907563,"d":"1.7%"}},{"$nulls":3},"Abielusõrmused",{"$f":"TBL_Pulmasõrmused[[#Totals],[EELDATAV]]","v":1100},{"$f":"TBL_Pulmasõrmused[[#Totals],[TEGELIK]]","v":0},1099.91,7,9,"Kirjatarbed"]
[null,"Transport",{"$f":"VLOOKUP(TBL_Kokkuvõte[[#This Row],[KATEGOORIA]],TBL_RankingData,2,FALSE)","v":{"v":450,"d":"450 €"}},{"$f":"IF(VLOOKUP(TBL_Kokkuvõte[[#This Row],[KATEGOORIA]],TBL_RankingData,3,FALSE)=0,\"\",VLOOKUP(TBL_Kokkuvõte[[#This Row],[KATEGOORIA]],TBL_RankingData,3,FALSE))","v":""},{"$f":"IF(OR(TBL_Kokkuvõte[[#This Row],[PROGNOOSITUD KULU]]=\"\",TBL_Kokkuvõte[[#This Row],[TEGELIK KULU]]=\"\"),\"\",TBL_Kokkuvõte[[#This Row],[PROGNOOSITUD KULU]]-TBL_Kokkuvõte[[#This Row],[TEGELIK KULU]])","v":""},{"$f":"TBL_Kokkuvõte[[#This Row],[PROGNOOSITUD KULU]]/SUM(TBL_Kokkuvõte[PROGNOOSITUD KULU])","v":{"v":0.015126050420168067,"d":"1.5%"}},{"$nulls":3},"Transport",{"$f":"TBL_Transport[[#Totals],[EELDATAV]]","v":450},{"$f":"TBL_Transport[[#Totals],[TEGELIK]]","v":0},449.9,10,10,"Transport"]
[null,"Kokku",{"$f":"SUBTOTAL(109,TBL_Kokkuvõte[PROGNOOSITUD KULU])","v":{"v":29750,"d":"29,750 €"}},{"$f":"SUBTOTAL(109,TBL_Kokkuvõte[TEGELIK KULU])","v":{"v":15700,"d":"15,700 €"}},{"$f":"TBL_Kokkuvõte[[#Totals],[PROGNOOSITUD KULU]]-TBL_Kokkuvõte[[#Totals],[TEGELIK KULU]]","v":{"v":14050,"d":"14,050 €"}},{"$f":"SUBTOTAL(109,TBL_Kokkuvõte[PROTSENT EELARVEST])","v":{"v":1,"d":"100%"}}]

{"sheet":"Eelarve üksikasjad","index":1,"n_rows":91,"n_cols":6,"rows_kept":91}
[{"$nulls":5}," "]
[null,"EELARVE ÜKSIKASJAD"]
[]
[null,"VASTUVÕTT","EELDATAV","TEGELIK","ERINEVUS"]
[null,"Toimumiskoht ja laenutus",{"v":8000,"d":"8,000.00 €"},{"v":7800,"d":"7,800.00 €"},{"$f":"IF(OR(TBL_Vastuvõtt[[#This Row],[EELDATAV]]=\"\",TBL_Vastuvõtt[[#This Row],[TEGELIK]]=\"\"),\"\",TBL_Vastuvõtt[[#This Row],[EELDATAV]]-TBL_Vastuvõtt[[#This Row],[TEGELIK]])","v":{"v":200,"d":"200.00 €"}}]
[null,"Söök ja teenindus",{"v":4000,"d":"4,000.00 €"},{"v":4200,"d":"4,200.00 €"},{"$f":"IF(OR(TBL_Vastuvõtt[[#This Row],[EELDATAV]]=\"\",TBL_Vastuvõtt[[#This Row],[TEGELIK]]=\"\"),\"\",TBL_Vastuvõtt[[#This Row],[EELDATAV]]-TBL_Vastuvõtt[[#This Row],[TEGELIK]])","v":{"v":-200,"d":"-200.00 €"}}]
[null,"Joogid",{"v":1000,"d":"1,000.00 €"},{"v":800,"d":"800.00 €"},{"$f":"IF(OR(TBL_Vastuvõtt[[#This Row],[EELDATAV]]=\"\",TBL_Vastuvõtt[[#This Row],[TEGELIK]]=\"\"),\"\",TBL_Vastuvõtt[[#This Row],[EELDATAV]]-TBL_Vastuvõtt[[#This Row],[TEGELIK]])","v":{"v":200,"d":"200.00 €"}}]
[null,"Tort",{"v":1000,"d":"1,000.00 €"},null,{"$f":"IF(OR(TBL_Vastuvõtt[[#This Row],[EELDATAV]]=\"\",TBL_Vastuvõtt[[#This Row],[TEGELIK]]=\"\"),\"\",TBL_Vastuvõtt[[#This Row],[EELDATAV]]-TBL_Vastuvõtt[[#This Row],[TEGELIK]])","v":""}]
[null,"Mitmesugused tasud",{"v":500,"d":"500.00 €"},null,{"$f":"IF(OR(TBL_Vastuvõtt[[#This Row],[EELDATAV]]=\"\",TBL_Vastuvõtt[[#This Row],[TEGELIK]]=\"\"),\"\",TBL_Vastuvõtt[[#This Row],[EELDATAV]]-TBL_Vastuvõtt[[#This Row],[TEGELIK]])","v":""}]
[null,"VASTUVÕTUKULUD KOKKU",{"$f":"SUBTOTAL(109,TBL_Vastuvõtt[EELDATAV])","v":{"v":14500,"d":"14,500.00 €"}},{"$f":"SUBTOTAL(109,TBL_Vastuvõtt[TEGELIK])","v":{"v":12800,"d":"12,800.00 €"}},{"$f":"TBL_Vastuvõtt[[#Totals],[EELDATAV]]-TBL_Vastuvõtt[[#Totals],[TEGELIK]]","v":{"v":1700,"d":"1,700.00 €"}}]
[]
[]
[null,"RIIETUS","EELDATAV","TEGELIK","ERINEVUS"]
[null,"Smokk, ülikond ja/või kleidid",{"v":3000,"d":"3,000.00 €"},{"v":2900,"d":"2,900.00 €"},{"$f":"IF(OR(TBL_Riietus[[#This Row],[EELDATAV]]=\"\",TBL_Riietus[[#This Row],[TEGELIK]]=\"\"),\"\",TBL_Riietus[[#This Row],[EELDATAV]]-TBL_Riietus[[#This Row],[TEGELIK]])","v":{"v":100,"d":"100.00 €"}}]
[null,"Kohandamised",{"v":100,"d":"100.00 €"},null,{"$f":"IF(OR(TBL_Riietus[[#This Row],[EELDATAV]]=\"\",TBL_Riietus[[#This Row],[TEGELIK]]=\"\"),\"\",TBL_Riietus[[#This Row],[EELDATAV]]-TBL_Riietus[[#This Row],[TEGELIK]])","v":""}]
[null,"Peaehe ja loor",{"v":200,"d":"200.00 €"},null,{"$f":"IF(OR(TBL_Riietus[[#This Row],[EELDATAV]]=\"\",TBL_Riietus[[#This Row],[TEGELIK]]=\"\"),\"\",TBL_Riietus[[#This Row],[EELDATAV]]-TBL_Riietus[[#This Row],[TEGELIK]])","v":""}]
[null,"Aksessuaarid",{"v":100,"d":"100.00 €"},null,{"$f":"IF(OR(TBL_Riietus[[#This Row],[EELDATAV]]=\"\",TBL_Riietus[[#This Row],[TEGELIK]]=\"\"),\"\",TBL_Riietus[[#This Row],[EELDATAV]]-TBL_Riietus[[#This Row],[TEGELIK]])","v":""}]
[null,"Juuksed ja meik",{"v":500,"d":"500.00 €"},null,{"$f":"IF(OR(TBL_Riietus[[#This Row],[EELDATAV]]=\"\",TBL_Riietus[[#This Row],[TEGELIK]]=\"\"),\"\",TBL_Riietus[[#This Row],[EELDATAV]]-TBL_Riietus[[#This Row],[TEGELIK]])","v":""}]
[null,"Mitmesugused tasud",{"v":100,"d":"100.00 €"},null,{"$f":"IF(OR(TBL_Riietus[[#This Row],[EELDATAV]]=\"\",TBL_Riietus[[#This Row],[TEGELIK]]=\"\"),\"\",TBL_Riietus[[#This Row],[EELDATAV]]-TBL_Riietus[[#This Row],[TEGELIK]])","v":""}]
[null,"RIIETUS KOKKU",{"$f":"SUBTOTAL(109,TBL_Riietus[EELDATAV])","v":{"v":4000,"d":"4,000.00 €"}},{"$f":"SUBTOTAL(109,TBL_Riietus[TEGELIK])","v":{"v":2900,"d":"2,900.00 €"}},{"$f":"TBL_Riietus[[#Totals],[EELDATAV]]-TBL_Riietus[[#Totals],[TEGELIK]]","v":{"v":1100,"d":"1,100.00 €"}}]
[]
[]
[null,"LILLED JA DEKORATSIOONID","EELDATAV","TEGELIK","ERINEVUS"]
[null,"Tseremoonia lilleseaded",{"v":1000,"d":"1,000.00 €"},null,{"$f":"IF(OR(TBL_Lilledjadekoratsioonid[[#This Row],[EELDATAV]]=\"\",TBL_Lilledjadekoratsioonid[[#This Row],[TEGELIK]]=\"\"),\"\",TBL_Lilledjadekoratsioonid[[#This Row],[EELDATAV]]-TBL_Lilledjadekoratsioonid[[#This Row],[TEGELIK]])","v":""}]
[null,"Lilleneiu kroonlehed ja korv",{"v":500,"d":"500.00 €"},null,{"$f":"IF(OR(TBL_Lilledjadekoratsioonid[[#This Row],[EELDATAV]]=\"\",TBL_Lilledjadekoratsioonid[[#This Row],[TEGELIK]]=\"\"),\"\",TBL_Lilledjadekoratsioonid[[#This Row],[EELDATAV]]-TBL_Lilledjadekoratsioonid[[#This Row],[TEGELIK]])","v":""}]
[null,"Sõrmuste padi",{"v":100,"d":"100.00 €"},null,{"$f":"IF(OR(TBL_Lilledjadekoratsioonid[[#This Row],[EELDATAV]]=\"\",TBL_Lilledjadekoratsioonid[[#This Row],[TEGELIK]]=\"\"),\"\",TBL_Lilledjadekoratsioonid[[#This Row],[EELDATAV]]-TBL_Lilledjadekoratsioonid[[#This Row],[TEGELIK]])","v":""}]
[null,"Lillekimbud",{"v":500,"d":"500.00 €"},null,{"$f":"IF(OR(TBL_Lilledjadekoratsioonid[[#This Row],[EELDATAV]]=\"\",TBL_Lilledjadekoratsioonid[[#This Row],[TEGELIK]]=\"\"),\"\",TBL_Lilledjadekoratsioonid[[#This Row],[EELDATAV]]-TBL_Lilledjadekoratsioonid[[#This Row],[TEGELIK]])","v":""}]
[null,"Nööpaugulilled",{"v":100,"d":"100.00 €"},null,{"$f":"IF(OR(TBL_Lilledjadekoratsioonid[[#This Row],[EELDATAV]]=\"\",TBL_Lilledjadekoratsioonid[[#This Row],[TEGELIK]]=\"\"),\"\",TBL_Lilledjadekoratsioonid[[#This Row],[EELDATAV]]-TBL_Lilledjadekoratsioonid[[#This Row],[TEGELIK]])","v":""}]
[null,"Käekaunistused",{"v":200,"d":"200.00 €"},null,{"$f":"IF(OR(TBL_Lilledjadekoratsioonid[[#This Row],[EELDATAV]]=\"\",TBL_Lilledjadekoratsioonid[[#This Row],[TEGELIK]]=\"\"),\"\",TBL_Lilledjadekoratsioonid[[#This Row],[EELDATAV]]-TBL_Lilledjadekoratsioonid[[#This Row],[TEGELIK]])","v":""}]
[null,"Vastuvõtu dekoratsioonid",{"v":300,"d":"300.00 €"},null,{"$f":"IF(OR(TBL_Lilledjadekoratsioonid[[#This Row],[EELDATAV]]=\"\",TBL_Lilledjadekoratsioonid[[#This Row],[TEGELIK]]=\"\"),\"\",TBL_Lilledjadekoratsioonid[[#This Row],[EELDATAV]]-TBL_Lilledjadekoratsioonid[[#This Row],[TEGELIK]])","v":""}]
[null,"Valgustus",{"v":200,"d":"200.00 €"},null,{"$f":"IF(OR(TBL_Lilledjadekoratsioonid[[#This Row],[EELDATAV]]=\"\",TBL_Lilledjadekoratsioonid[[#This Row],[TEGELIK]]=\"\"),\"\",TBL_Lilledjadekoratsioonid[[#This Row],[EELDATAV]]-TBL_Lilledjadekoratsioonid[[#This Row],[TEGELIK]])","v":""}]
[null,"Mitmesugused tasud",{"v":100,"d":"100.00 €"},null,{"$f":"IF(OR(TBL_Lilledjadekoratsioonid[[#This Row],[EELDATAV]]=\"\",TBL_Lilledjadekoratsioonid[[#This Row],[TEGELIK]]=\"\"),\"\",TBL_Lilledjadekoratsioonid[[#This Row],[EELDATAV]]-TBL_Lilledjadekoratsioonid[[#This Row],[TEGELIK]])","v":""}]
[null,"LILLED JA DEKORATSIOONID KOKKU",{"$f":"SUBTOTAL(109,TBL_Lilledjadekoratsioonid[EELDATAV])","v":{"v":3000,"d":"3,000.00 €"}},{"$f":"SUBTOTAL(109,TBL_Lilledjadekoratsioonid[TEGELIK])","v":{"v":0,"d":"0.00 €"}},{"$f":"TBL_Lilledjadekoratsioonid[[#Totals],[EELDATAV]]-TBL_Lilledjadekoratsioonid[[#Totals],[TEGELIK]]","v":{"v":3000,"d":"3,000.00 €"}}]
[]
[]
[null,"MUUSIKA","EELDATAV","TEGELIK","ERINEVUS"]
[null,"Tseremoonia muusikud",{"v":700,"d":"700.00 €"},null,{"$f":"IF(OR(TBL_Muusika[[#This Row],[EELDATAV]]=\"\",TBL_Muusika[[#This Row],[TEGELIK]]=\"\"),\"\",TBL_Muusika[[#This Row],[EELDATAV]]-TBL_Muusika[[#This Row],[TEGELIK]])","v":""}]
[null,"Kokteiliaja muusikud",{"v":300,"d":"300.00 €"},null,{"$f":"IF(OR(TBL_Muusika[[#This Row],[EELDATAV]]=\"\",TBL_Muusika[[#This Row],[TEGELIK]]=\"\"),\"\",TBL_Muusika[[#This Row],[EELDATAV]]-TBL_Muusika[[#This Row],[TEGELIK]])","v":""}]
[null,"Vastuvõtu bänd, diskor või meelelahutus",{"v":200,"d":"200.00 €"},null,{"$f":"IF(OR(TBL_Muusika[[#This Row],[EELDATAV]]=\"\",TBL_Muusika[[#This Row],[TEGELIK]]=\"\"),\"\",TBL_Muusika[[#This Row],[EELDATAV]]-TBL_Muusika[[#This Row],[TEGELIK]])","v":""}]
[null,"Helisüsteemi või tantsupõranda rentimine",{"v":400,"d":"400.00 €"},null,{"$f":"IF(OR(TBL_Muusika[[#This Row],[EELDATAV]]=\"\",TBL_Muusika[[#This Row],[TEGELIK]]=\"\"),\"\",TBL_Muusika[[#This Row],[EELDATAV]]-TBL_Muusika[[#This Row],[TEGELIK]])","v":""}]
[null,"Mitmesugused tasud",{"v":200,"d":"200.00 €"},null,{"$f":"IF(OR(TBL_Muusika[[#This Row],[EELDATAV]]=\"\",TBL_Muusika[[#This Row],[TEGELIK]]=\"\"),\"\",TBL_Muusika[[#This Row],[EELDATAV]]-TBL_Muusika[[#This Row],[TEGELIK]])","v":""}]
[null,"MUUSIKA KOKKU",{"$f":"SUBTOTAL(109,TBL_Muusika[EELDATAV])","v":{"v":1800,"d":"1,800.00 €"}},{"$f":"SUBTOTAL(109,TBL_Muusika[TEGELIK])","v":{"v":0,"d":"0.00 €"}},{"$f":"TBL_Muusika[[#Totals],[EELDATAV]]-TBL_Muusika[[#Totals],[TEGELIK]]","v":{"v":1800,"d":"1,800.00 €"}}]
[]
[]
[null,"FOTOD JA VIDEO","EELDATAV","TEGELIK","ERINEVUS"]
[null,"Fotod",{"v":1000,"d":"1,000.00 €"},null,{"$f":"IF(OR(TBL_Fotodjavideo[[#This Row],[EELDATAV]]=\"\",TBL_Fotodjavideo[[#This Row],[TEGELIK]]=\"\"),\"\",TBL_Fotodjavideo[[#This Row],[EELDATAV]]-TBL_Fotodjavideo[[#This Row],[TEGELIK]])","v":""}]
[null,"Videod",{"v":800,"d":"800.00 €"},null,{"$f":"IF(OR(TBL_Fotodjavideo[[#This Row],[EELDATAV]]=\"\",TBL_Fotodjavideo[[#This Row],[TEGELIK]]=\"\"),\"\",TBL_Fotodjavideo[[#This Row],[EELDATAV]]-TBL_Fotodjavideo[[#This Row],[TEGELIK]])","v":""}]
[null,"Täiendavad trükised ja albumid",{"v":500,"d":"500.00 €"},null,{"$f":"IF(OR(TBL_Fotodjavideo[[#This Row],[EELDATAV]]=\"\",TBL_Fotodjavideo[[#This Row],[TEGELIK]]=\"\"),\"\",TBL_Fotodjavideo[[#This Row],[EELDATAV]]-TBL_Fotodjavideo[[#This Row],[TEGELIK]])","v":""}]
[null,"Mitmesugused tasud",{"v":200,"d":"200.00 €"},null,{"$f":"IF(OR(TBL_Fotodjavideo[[#This Row],[EELDATAV]]=\"\",TBL_Fotodjavideo[[#This Row],[TEGELIK]]=\"\"),\"\",TBL_Fotodjavideo[[#This Row],[EELDATAV]]-TBL_Fotodjavideo[[#This Row],[TEGELIK]])","v":""}]
[null,"FOTOD JA VIDEO KOKKU",{"$f":"SUBTOTAL(109,TBL_Fotodjavideo[EELDATAV])","v":{"v":2500,"d":"2,500.00 €"}},{"$f":"SUBTOTAL(109,TBL_Fotodjavideo[TEGELIK])","v":{"v":0,"d":"0.00 €"}},{"$f":"TBL_Fotodjavideo[[#Totals],[EELDATAV]]-TBL_Fotodjavideo[[#Totals],[TEGELIK]]","v":{"v":2500,"d":"2,500.00 €"}}]
[]
[]
[null,"MEENED JA KINGITUSED","EELDATAV","TEGELIK","ERINEVUS"]
[null,"Tervituse kingitused",{"v":700,"d":"700.00 €"},null,{"$f":"IF(OR(TBL_Meenedjakingitused[[#This Row],[EELDATAV]]=\"\",TBL_Meenedjakingitused[[#This Row],[TEGELIK]]=\"\"),\"\",TBL_Meenedjakingitused[[#This Row],[EELDATAV]]-TBL_Meenedjakingitused[[#This Row],[TEGELIK]])","v":""}]
[null,"Peo kingitused",{"v":200,"d":"200.00 €"},null,{"$f":"IF(OR(TBL_Meenedjakingitused[[#This Row],[EELDATAV]]=\"\",TBL_Meenedjakingitused[[#This Row],[TEGELIK]]=\"\"),\"\",TBL_Meenedjakingitused[[#This Row],[EELDATAV]]-TBL_Meenedjakingitused[[#This Row],[TEGELIK]])","v":""}]
[null,"Mitmesugused tasud",{"v":200,"d":"200.00 €"},null,{"$f":"IF(OR(TBL_Meenedjakingitused[[#This Row],[EELDATAV]]=\"\",TBL_Meenedjakingitused[[#This Row],[TEGELIK]]=\"\"),\"\",TBL_Meenedjakingitused[[#This Row],[EELDATAV]]-TBL_Meenedjakingitused[[#This Row],[TEGELIK]])","v":""}]
[null,"MEENED JA KINGITUSED KOKKU",{"$f":"SUBTOTAL(109,TBL_Meenedjakingitused[EELDATAV])","v":{"v":1100,"d":"1,100.00 €"}},{"$f":"SUBTOTAL(109,TBL_Meenedjakingitused[TEGELIK])","v":{"v":0,"d":"0.00 €"}},{"$f":"TBL_Meenedjakingitused[[#Totals],[EELDATAV]]-TBL_Meenedjakingitused[[#Totals],[TEGELIK]]","v":{"v":1100,"d":"1,100.00 €"}}]
[]
[]
[null,"TSEREMOONIA","EELDATAV","TEGELIK","ERINEVUS"]
[null,"Toimumiskoha tasu",{"v":500,"d":"500.00 €"},null,{"$f":"IF(OR(TBL_Tseremoonia[[#This Row],[EELDATAV]]=\"\",TBL_Tseremoonia[[#This Row],[TEGELIK]]=\"\"),\"\",TBL_Tseremoonia[[#This Row],[EELDATAV]]-TBL_Tseremoonia[[#This Row],[TEGELIK]])","v":""}]
[null,"Tseremooniameistri tasu või annetus kirikule",{"v":200,"d":"200.00 €"},null,{"$f":"IF(OR(TBL_Tseremoonia[[#This Row],[EELDATAV]]=\"\",TBL_Tseremoonia[[#This Row],[TEGELIK]]=\"\"),\"\",TBL_Tseremoonia[[#This Row],[EELDATAV]]-TBL_Tseremoonia[[#This Row],[TEGELIK]])","v":""}]
[null,"Mitmesugused tasud",{"v":100,"d":"100.00 €"},null,{"$f":"IF(OR(TBL_Tseremoonia[[#This Row],[EELDATAV]]=\"\",TBL_Tseremoonia[[#This Row],[TEGELIK]]=\"\"),\"\",TBL_Tseremoonia[[#This Row],[EELDATAV]]-TBL_Tseremoonia[[#This Row],[TEGELIK]])","v":""}]
[null,"TSEREMOONIA KOKKU",{"$f":"SUBTOTAL(109,TBL_Tseremoonia[EELDATAV])","v":{"v":800,"d":"800.00 €"}},{"$f":"SUBTOTAL(109,TBL_Tseremoonia[TEGELIK])","v":{"v":0,"d":"0.00 €"}},{"$f":"TBL_Tseremoonia[[#Totals],[EELDATAV]]-TBL_Tseremoonia[[#Totals],[TEGELIK]]","v":{"v":800,"d":"800.00 €"}}]
[]
[]
[null,"KIRJATARBED","EELDATAV","TEGELIK","ERINEVUS"]
[null,"Kuupäevast teavitamise kaardid",{"v":50,"d":"50.00 €"},null,{"$f":"IF(OR(TBL_Kirjatarbed[[#This Row],[EELDATAV]]=\"\",TBL_Kirjatarbed[[#This Row],[TEGELIK]]=\"\"),\"\",TBL_Kirjatarbed[[#This Row],[EELDATAV]]-TBL_Kirjatarbed[[#This Row],[TEGELIK]])","v":""}]
[null,"Kutsed ja osalemisvastused",{"v":100,"d":"100.00 €"},null,{"$f":"IF(OR(TBL_Kirjatarbed[[#This Row],[EELDATAV]]=\"\",TBL_Kirjatarbed[[#This Row],[TEGELIK]]=\"\"),\"\",TBL_Kirjatarbed[[#This Row],[EELDATAV]]-TBL_Kirjatarbed[[#This Row],[TEGELIK]])","v":""}]
[null,"Kavalehed",{"v":50,"d":"50.00 €"},null,{"$f":"IF(OR(TBL_Kirjatarbed[[#This Row],[EELDATAV]]=\"\",TBL_Kirjatarbed[[#This Row],[TEGELIK]]=\"\"),\"\",TBL_Kirjatarbed[[#This Row],[EELDATAV]]-TBL_Kirjatarbed[[#This Row],[TEGELIK]])","v":""}]
[null,"Istekohtade ja paigutuse kaardid",{"v":50,"d":"50.00 €"},null,{"$f":"IF(OR(TBL_Kirjatarbed[[#This Row],[EELDATAV]]=\"\",TBL_Kirjatarbed[[#This Row],[TEGELIK]]=\"\"),\"\",TBL_Kirjatarbed[[#This Row],[EELDATAV]]-TBL_Kirjatarbed[[#This Row],[TEGELIK]])","v":""}]
[null,"Menüükaardid",{"v":50,"d":"50.00 €"},null,{"$f":"IF(OR(TBL_Kirjatarbed[[#This Row],[EELDATAV]]=\"\",TBL_Kirjatarbed[[#This Row],[TEGELIK]]=\"\"),\"\",TBL_Kirjatarbed[[#This Row],[EELDATAV]]-TBL_Kirjatarbed[[#This Row],[TEGELIK]])","v":""}]
[null,"Tänukaardid",{"v":50,"d":"50.00 €"},null,{"$f":"IF(OR(TBL_Kirjatarbed[[#This Row],[EELDATAV]]=\"\",TBL_Kirjatarbed[[#This Row],[TEGELIK]]=\"\"),\"\",TBL_Kirjatarbed[[#This Row],[EELDATAV]]-TBL_Kirjatarbed[[#This Row],[TEGELIK]])","v":""}]
[null,"Postikulu",{"v":50,"d":"50.00 €"},null,{"$f":"IF(OR(TBL_Kirjatarbed[[#This Row],[EELDATAV]]=\"\",TBL_Kirjatarbed[[#This Row],[TEGELIK]]=\"\"),\"\",TBL_Kirjatarbed[[#This Row],[EELDATAV]]-TBL_Kirjatarbed[[#This Row],[TEGELIK]])","v":""}]
[null,"Mitmesugused tasud",{"v":100,"d":"100.00 €"},null,{"$f":"IF(OR(TBL_Kirjatarbed[[#This Row],[EELDATAV]]=\"\",TBL_Kirjatarbed[[#This Row],[TEGELIK]]=\"\"),\"\",TBL_Kirjatarbed[[#This Row],[EELDATAV]]-TBL_Kirjatarbed[[#This Row],[TEGELIK]])","v":""}]
[null,"KIRJATARBED KOKKU",{"$f":"SUBTOTAL(109,TBL_Kirjatarbed[EELDATAV])","v":{"v":500,"d":"500.00 €"}},{"$f":"SUBTOTAL(109,TBL_Kirjatarbed[TEGELIK])","v":{"v":0,"d":"0.00 €"}},{"$f":"TBL_Kirjatarbed[[#Totals],[EELDATAV]]-TBL_Kirjatarbed[[#Totals],[TEGELIK]]","v":{"v":500,"d":"500.00 €"}}]
[]
[]
[null,"ABIELUSÕRMUSED","EELDATAV","TEGELIK","ERINEVUS"]
[null,"Abielusõrmused",{"v":1000,"d":"1,000.00 €"},null,{"$f":"IF(OR(TBL_Pulmasõrmused[[#This Row],[EELDATAV]]=\"\",TBL_Pulmasõrmused[[#This Row],[TEGELIK]]=\"\"),\"\",TBL_Pulmasõrmused[[#This Row],[EELDATAV]]-TBL_Pulmasõrmused[[#This Row],[TEGELIK]])","v":""}]
[null,"Sõrmuste aksessuaarid",{"v":100,"d":"100.00 €"},null,{"$f":"IF(OR(TBL_Pulmasõrmused[[#This Row],[EELDATAV]]=\"\",TBL_Pulmasõrmused[[#This Row],[TEGELIK]]=\"\"),\"\",TBL_Pulmasõrmused[[#This Row],[EELDATAV]]-TBL_Pulmasõrmused[[#This Row],[TEGELIK]])","v":""}]
[null,"ABIELUSÕRMUSED KOKKU",{"$f":"SUBTOTAL(109,TBL_Pulmasõrmused[EELDATAV])","v":{"v":1100,"d":"1,100.00 €"}},{"$f":"SUBTOTAL(109,TBL_Pulmasõrmused[TEGELIK])","v":{"v":0,"d":"0.00 €"}},{"$f":"TBL_Pulmasõrmused[[#Totals],[EELDATAV]]-TBL_Pulmasõrmused[[#Totals],[TEGELIK]]","v":{"v":1100,"d":"1,100.00 €"}}]
[]
[]
[null,"TRANSPORT  ","EELDATAV","TEGELIK","ERINEVUS"]
[null,"Peamise auto rent",{"v":100,"d":"100.00 €"},null,{"$f":"IF(OR(TBL_Transport[[#This Row],[EELDATAV]]=\"\",TBL_Transport[[#This Row],[TEGELIK]]=\"\"),\"\",TBL_Transport[[#This Row],[EELDATAV]]-TBL_Transport[[#This Row],[TEGELIK]])","v":""}]
[null,"Külaliste autode rent",{"v":100,"d":"100.00 €"},null,{"$f":"IF(OR(TBL_Transport[[#This Row],[EELDATAV]]=\"\",TBL_Transport[[#This Row],[TEGELIK]]=\"\"),\"\",TBL_Transport[[#This Row],[EELDATAV]]-TBL_Transport[[#This Row],[TEGELIK]])","v":""}]
[null,"Kaugemalt tulnud külaliste transport",{"v":100,"d":"100.00 €"},null,{"$f":"IF(OR(TBL_Transport[[#This Row],[EELDATAV]]=\"\",TBL_Transport[[#This Row],[TEGELIK]]=\"\"),\"\",TBL_Transport[[#This Row],[EELDATAV]]-TBL_Transport[[#This Row],[TEGELIK]])","v":""}]
[null,"Parkimisteenus",{"v":50,"d":"50.00 €"},null,{"$f":"IF(OR(TBL_Transport[[#This Row],[EELDATAV]]=\"\",TBL_Transport[[#This Row],[TEGELIK]]=\"\"),\"\",TBL_Transport[[#This Row],[EELDATAV]]-TBL_Transport[[#This Row],[TEGELIK]])","v":""}]
[null,"Mitmesugused tasud",{"v":100,"d":"100.00 €"},null,{"$f":"IF(OR(TBL_Transport[[#This Row],[EELDATAV]]=\"\",TBL_Transport[[#This Row],[TEGELIK]]=\"\"),\"\",TBL_Transport[[#This Row],[EELDATAV]]-TBL_Transport[[#This Row],[TEGELIK]])","v":""}]
[null,"TRANSPORT KOKKU",{"$f":"SUBTOTAL(109,TBL_Transport[EELDATAV])","v":{"v":450,"d":"450.00 €"}},{"$f":"SUBTOTAL(109,TBL_Transport[TEGELIK])","v":{"v":0,"d":"0.00 €"}},{"$f":"TBL_Transport[[#Totals],[EELDATAV]]-TBL_Transport[[#Totals],[TEGELIK]]","v":{"v":450,"d":"450.00 €"}}]